Cogmind - Beta 13 @@@ ROGUE MODE // 2024.04.04 @ 03:06:19 Player: Bean Result: Destroyed by 8R-AWN with 8R-AWN's Boregun Performance ------------- Evolutions (0) 0 Regions Visited (3) 600 Robots Destroyed (27) 135 Value Destroyed (451) 451 Prototype IDs (0) 0 Alien Tech Used (0) 0 Bonus (0) 0 TOTAL SCORE: 1186 Bonus ------- None Cogmind --------- Core Integrity 0/250 Matter 277/300 Energy 100/100 System Corruption 3% Temperature Cool (15) Movement Walking (120) Location -10/Exiles Parts ------- > --- POWER (1) -------- (None) > --- PROPULSION (2) --- Carbon-fiber Leg > --- UTILITY (2) ------ Medium Storage Unit Transport Network Coupler > --- WEAPON (2) ------- (None) > --- INVENTORY (10) --- Nuclear Core Improved Heat Sink Sensor Array Signal Interpreter Improved Terrain Scanner Targeting Computer Targeting Computer Targeting Computer Targeting Computer Light Cannon Peak State ------------ > --- POWER ------------ Ion Engine > --- PROPULSION ------- Carbon-fiber Leg Carbon-fiber Leg > --- UTILITY ---------- Medium Storage Unit Transport Network Coupler > --- WEAPON ----------- Light Assault Rifle Light Cannon > --- INVENTORY -------- Improved Heat Sink Sensor Array Signal Interpreter Improved Terrain Scanner Targeting Computer Targeting Computer Targeting Computer Targeting Computer [Rating: 12] Favorites ----------- Power Light Nuclear Core Engine Ion Engine Power Core Light Nuclear Core Propulsion Aluminum Leg Leg Aluminum Leg Wheel Wheel Utility Medium Storage Unit Device Improved Terrain Scanner Storage Medium Storage Unit Processor Transport Network Coupler Weapon Light Assault Rifle Ballistic Gun Light Assault Rifle Ballistic Cannon Light Cannon Special Weapon Mining Laser Build | -11 -10 -10 -10 ------- Run | Yrd Mat Min Exi Slots Evolved . | . . . . Power . | . . . . Propulsion . | . . . . Utility . | . . . . Weapon . | . . . . Parts Attached 27 | 8 13 6 . Power 4 | 1 2 1 . Engine 3 | 1 1 1 . Core 1 | . 1 . . Reactor . | . . . . Propulsion 9 | 2 5 2 . Treads . | . . . . Leg 5 | . 3 2 . Wheel 4 | 2 2 . . Hover . | . . . . Flight . | . . . . Utility 7 | 3 4 . . Device 2 | 2 . . . Storage 3 | 1 2 . . Processor 2 | . 2 . . Hackware . | . . . . Protection . | . . . . Artifact . | . . . . Weapon 7 | 2 2 3 . Energy Gun . | . . . . Energy Cannon . | . . . . Ballistic Gun 4 | 2 . 2 . Ballistic Cannon 1 | . 1 . . Launcher . | . . . . Special Weapon 2 | . 1 1 . Impact Weapon . | . . . . Slashing Weapon . | . . . . Piercing Weapon . | . . . . Special Melee Weapon . | . . . . Unidentified Prototypes . | . . . . Parts Lost 11 | . 5 2 4 Power 3 | . 1 1 1 Propulsion 4 | . 3 . 1 Utility 1 | . 1 . . Weapon 3 | . . 1 2 Highest Loss Streak 4 | . 3 2 4 To Critical Strikes 2 | . . . 2 Average Slot Usage (%) 89 | . 90 86 92 Engine 7 | . 4 11 12 Core 6 | . 8 2 . Leg 18 | . 14 28 26 Wheel 6 | . 10 . . Device 6 | . 9 . . Storage 11 | . 10 14 14 Processor 8 | . 6 14 14 Ballistic Gun 16 | . 21 1 24 Ballistic Cannon 5 | . 2 12 . Naked Turns . | . . . . Heaviest Build 19 | 11 18 19 17 Greatest Support 30 | 20 20 30 30 Greatest Overweight (x) 1 | . 1 . 1 Average Overweight (x) . | . . . . Largest Inventory Capacity 10 | 8 10 10 10 Average Capacity 8 | 7 7 10 10 Most Carried 10 | 4 10 10 10 Average Carried 6 | 2 5 8 9 Final Capacity 10 | 8 10 10 10 Final Carried 10 | 4 10 9 10 Class Distribution -------------------- 62% | Scavenger-Mutant 37% | Mutant Dominant Class ---------------- Scavenger-Mutant | -10/Materials Scavenger-Mutant | -10/Mines Scavenger-Mutant | -10/Exiles Resources | -11 -10 -10 -10 ----------- Run | Yrd Mat Min Exi Matter Collected 688 | 300 195 193 . Remotely . | . . . . Salvage Created 653 | 74 521 58 . Parts 63 | 11 37 15 . Haulers Intercepted 2 | . 2 . . Recyclers Shooed . | . . . . Parts Field Recycled . | . . . . Retrieved Matter . | . . . . Parts Self-Destructed . | . . . . Prevented . | . . . . Kills | -11 -10 -10 -10 ------- Run | Yrd Mat Min Exi Combat Hostiles Destroyed 17 | . 10 7 . Guns 10 | . 10 . . Cannons 7 | . . 7 . Classes Destroyed 6 | 1 5 . . Tunneler 5 | 4 . 1 . Hauler 2 | . 2 . . Operator 1 | . 1 . . Watcher 2 | . 2 . . Swarmer 10 | . 3 7 . Grunt 7 | . 7 . . Best Kill Streak 4 | 1 4 4 . Combat Bots Only 4 | . 4 3 . Max Kills in Single Turn 2 | 1 2 2 . Gunslinging 1 | . 1 . . Exploded . | . . . . Melee . | . . . . Uniques/NPCs Destroyed . | . . . . Combat | -11 -10 -10 -10 -------- Run | Yrd Mat Min Exi Hostile Shots Fired 170 | . 72 64 34 Missed 52 | . 26 16 10 Damage Taken 1329 | . 482 398 449 Core 250 | . 102 63 85 Absorbed by Shields . | . . . . Regen/Repaired (Parts) 10 | . 10 . . Core Remaining (%) 100 | 100 . . . Volleys Fired 106 | 10 66 27 3 Largest 2 | 2 2 2 2 Hottest 135 | 40 40 135 40 Shots Fired 184 | 20 127 30 7 Gun 149 | 20 122 . 7 Cannon 32 | . 5 27 . Launcher . | . . . . Special 3 | . . 3 . Kinetic 181 | 20 127 27 7 Thermal 3 | . . 3 . Explosive . | . . . . Electromagnetic . | . . . . Robot Hit Streak 9 | 5 9 3 4 Robot Miss Streak 5 | 2 5 5 2 Penetration Max . | . . . . Secondary Targets 1 | . 1 . . Max Gunslinging Chain 1 | . 1 . . Shots Hit Robots 93 | 12 64 12 5 Core Hits 48 | 6 34 7 1 Critical Kills . | . . . . Critical Parts Destroyed . | . . . . Critical Strikes 2 | . 2 . . Blast 2 | . 2 . . Melee Attacks . | . . . . Impact . | . . . . Slashing . | . . . . Piercing . | . . . . Sneak Attacks . | . . . . Combat Hostiles . | . . . . Follow-up Attacks . | . . . . Damage Inflicted 986 | 109 580 253 44 Guns 697 | 109 544 . 44 Cannons 265 | . 36 229 . Explosions . | . . . . Melee . | . . . . Ramming . | . . . . Kinetic 962 | 109 580 229 44 Thermal 24 | . . 24 . Explosive . | . . . . Electromagnetic . | . . . . Impact . | . . . . Slashing . | . . . . Piercing . | . . . . Highest Corruption 3 | . 1 1 3 Average Corruption 1 | . 1 1 1 Corruption Purged . | . . . . Corruption Blocked . | . . . . Effects 13 | . 7 5 1 Message Errors 3 | . 1 2 . Matter Fused 2 | . 1 1 . Heat Flow Errors 2 | . 1 1 . Energy Discharges 2 | . 1 1 . Parts Rejected 1 | . 1 . . Data Loss (minor) 1 | . 1 . . Data Loss (major) 1 | . 1 . . Misfires 1 | . . . 1 Overload Shots . | . . . . Overflow Damage 14 | . . 14 . Projectiles 14 | . . 14 . Explosions . | . . . . Melee . | . . . . Knockbacks 3 | . . 3 . Impact . | . . . . Kinetic 3 | . . 3 . Secondary . | . . . . Self-Inflicted Damage . | . . . . Shots . | . . . . Rammed . | . . . . Targets Rammed . | . . . . Kicked . | . . . . Crushed . | . . . . Highest Temperature 145 | . 144 145 64 Average Temperature 32 | . 13 73 39 Received Heat Transfer 355 | . 195 . 160 Siege Activations . | . . . . Robots Corrupted . | . . . . Combat Hostiles . | . . . . Parts Fried . | . . . . Impact Corruptions . | . . . . Robots Melted . | . . . . Combat Hostiles . | . . . . Parts Melted . | . . . . Heat Transferred 50 | . . 50 . Parts Sabotaged . | . . . . Parts Stolen . | . . . . Parts Stripped . | . . . . Power Chain Reactions . | . . . . Alert | -11 -10 -10 -10 ------- Run | Yrd Mat Min Exi Peak Influence 217 | 20 217 166 . Initial 13 | . 13 4 . Average 68 | 7 75 74 . Maximum Alert Level 1 | . 1 . . Low Security (%) 95 | 100 93 100 . Level 1 4 | . 6 . . Level 2 . | . . . . Level 3 . | . . . . Level 4 . | . . . . Level 5 . | . . . . High Security . | . . . . Max Security . | . . . . Squads Dispatched 4 | . 4 . . Investigation 1 | . 1 . . Extermination . | . . . . Reinforcement 3 | . 3 . . Assault . | . . . . Garrison . | . . . . Intercept . | . . . . Searches Triggered . | . . . . Construction Impeded . | . . . . Haulers Reinforced . | . . . . Active Scanning Responses . | . . . . Cargo Convoy Interrupts . | . . . . Stealth | -11 -10 -10 -10 --------- Run | Yrd Mat Min Exi Distress Signals 2 | . 2 . . Communications Jammed . | . . . . Distress Signals . | . . . . Times Spotted 38 | . 23 7 8 Peak Tracking Total 9 | . 8 3 9 Tactical Retreats 2 | . 2 . . Traps | -11 -10 -10 -10 ------- Run | Yrd Mat Min Exi Traps Triggered 2 | . 2 . . Indirectly . | . . . . Trap Hack Attempts . | . . . . Triggered . | . . . . Disarmed . | . . . . Reprogrammed . | . . . . Reused . | . . . . Traps Extracted . | . . . . Installed . | . . . . Triggered . | . . . . Machines | -11 -10 -10 -10 ---------- Run | Yrd Mat Min Exi Machines Disabled . | . . . . Max in Single Turn . | . . . . Machines Repaired . | . . . . Machines Dismantled . | . . . . Machines Sabotaged . | . . . . Overloaded Fab Kills . | . . . . Hacking | -11 -10 -10 -10 --------- Run | Yrd Mat Min Exi Machines Accessed 6 | . 6 . . Terminals 3 | . 3 . . Fabricators . | . . . . Repair Stations 1 | . 1 . . Recycling Units 2 | . 2 . . Scanalyzers . | . . . . Garrison Access . | . . . . Total Hacks 13 | . 13 . . Successful 6 | . 6 . . Failed 7 | . 7 . . Catastrophic 1 | . 1 . . Database Lockouts . | . . . . Manual 11 | . 11 . . Terminals 7 | . 7 . . Fabricators . | . . . . Repair Stations 2 | . 2 . . Recycling Units 4 | . 4 . . Scanalyzers . | . . . . Garrison Access . | . . . . Terminal Hacks 1 | . 1 . . Alert Level 1 | . 1 . . Fabricator Hacks . | . . . . Repair Station Hacks 2 | . 2 . . Scan Component 1 | . 1 . . Repair 1 | . 1 . . Recycling Unit Hacks . | . . . . Scanalyzer . | . . . . Garrison Access Hacks . | . . . . Unauthorized Hacks 3 | . 3 . . Terminals 1 | . 1 . . Botnet 1 | . 1 . . Fabricators . | . . . . Repair Stations . | . . . . Recycling Units 2 | . 2 . . Mask 2 | . 2 . . Scanalyzers . | . . . . Garrison Access . | . . . . Data Cores Recovered . | . . . . Used . | . . . . Hacking Detections 4 | . 4 . . Full Trace Events 2 | . 2 . . Feedback Events . | . . . . Feedback Blocked . | . . . . Robot Schematics Acquired . | . . . . Robots Built . | . . . . Authchips . | . . . . Time . | . . . . Total Robot Build Rating . | . . . . Part Schematics Acquired . | . . . . Parts Built . | . . . . Authchips . | . . . . Time . | . . . . Total Part Build Rating . | . . . . Parts Repaired 1 | . 1 . . Time 26 | . 26 . . Parts Recycled . | . . . . Recycled Matter . | . . . . Retrieved Matter . | . . . . Retrieved Components . | . . . . Parts Scanalyzed . | . . . . Part Schematics Acquired . | . . . . Parts Damaged . | . . . . Bothacking | -11 -10 -10 -10 ------------ Run | Yrd Mat Min Exi Used RIF Installer . | . . . . Robots Hacked . | . . . . Non-combat . | . . . . Combat . | . . . . Robot Hacks Applied . | . . . . Relay Couplers Released . | . . . . Fabnet Peak Effective % . | . . . . Robots Rewired . | . . . . Allies Hacked . | . . . . Hacks Repelled . | . . . . Allies | -11 -10 -10 -10 -------- Run | Yrd Mat Min Exi Total Allies . | . . . . Largest Group . | . . . . Highest-Rated Group . | . . . . Highest-Rated Ally . | . . . . Total Orders . | . . . . Ally Attacks . | . . . . Total Damage . | . . . . Kills . | . . . . Allies Corrupted . | . . . . Allies Melted . | . . . . Intel | -11 -10 -10 -10 ------- Run | Yrd Mat Min Exi Robot Analysis Total . | . . . . Derelict Logs Recovered 1 | . . 1 . Drone Launches . | . . . . Drone Recoveries . | . . . . Exploration | -11 -10 -10 -10 ------------- Run | Yrd Mat Min Exi Turns Passed 1579 | 144 965 399 71 Spaces Moved 1074 | 124 645 254 51 Core 8 | 8 . . . Treads . | . . . . Legs 671 | . 366 254 51 Wheels 395 | 116 279 . . Hover . | . . . . Flight . | . . . . Fastest Speed 50 | 50 80 120 120 Average Speed 108 | 78 107 120 121 Slowest Speed 190 | 80 190 120 190 Overloaded Moves . | . . . . Propulsion Burnouts . | . . . . Robots Hopped . | . . . . Cave-ins Triggered . | . . . . Exploration Rate (%) 39 | 4 75 61 18 Regions Visited 3 Branch Regions 2 Pre-discovered Areas . | . . . . Known Exits Taken . | . . . . Unknown Exits Taken 3 | 1 1 1 . Scrap Searched . | . . . . Spaces Dug . | . . . . Terrain Destroyed 2 | . . 2 . Melee . | . . . . Projectile 2 | . . 2 . AOE . | . . . . Terrain Rammed . | . . . . Walls Destroyed . | . . . . Machines Disabled . | . . . . Actions | -11 -10 -10 -10 --------- Run | Yrd Mat Min Exi Total 1340 | 156 816 312 56 Wait 79 | 1 58 19 1 Move 1071 | 123 644 253 51 Hop . | . . . . Pick Up 39 | 12 22 4 1 Fast Attach . | . . . . Attach 23 | 8 11 4 . Detach 5 | 1 3 1 . Swap 4 | . 2 2 . Drop 13 | 1 10 2 . Fire 106 | 10 66 27 3 Melee . | . . . . Ram . | . . . . Kick . | . . . . Crush . | . . . . Escape Stasis . | . . . . Rewire . | . . . . Trap . | . . . . Miscellaneous . | . . . . Route ------- -11/Scrapyard -10/Materials (discovered 2 exits: [*Mat] / [*Min]) -10/Mines (discovered 3 exits: [*Mat x2] / [*Exi]) -10/Exiles History --------- Turn | Location | Event 16 | -11/Scrapyard | Discovered new exit (range 15) 145 | -11/Scrapyard | Entered Materials 220 | -10/Materials | Repaired Mining Laser 315 | -10/Materials | Build established: Mutant 508 | -10/Materials | Lost 3 parts (1p2n) 671 | -10/Materials | Discovered new exit (range 16) 717 | -10/Materials | Discovered new exit (range 13) 1083 | -10/Materials | Build established: Scavenger-Mutant 1110 | -10/Materials | Entered Mines 1115 | -10/Mines | Met a Derelict bent on vengeance 1169 | -10/Mines | Core integrity fell below 50% 1399 | -10/Mines | Discovered new exit (range 8) 1441 | -10/Mines | Learned Materials emergency access door positions 1441 | -10/Mines | Discovered new exit (range 8) 1504 | -10/Mines | Deemed a non-threat by the Exiles lab entrance 1504 | -10/Mines | Discovered new exit (range 5) 1509 | -10/Mines | Entered Exiles 1544 | -10/Exiles | Met 8R-AWN 1558 | -10/Exiles | Met EX-HEX 1565 | -10/Exiles | Attacked by the Exiles 1570 | -10/Exiles | Core integrity fell below 20% 1580 | -10/Exiles | Destroyed by 8R-AWN with 8R-AWN's Boregun Last Messages --------------- Penetrated by HV Slug. Critical hit (Destroy). Ion Engine destroyed. HV Slug penetrates as-71939. as-71939 suffers critical hit (Destroy). as-71939 destroyed. Machine disabled. Penetrated by HV Slug. HV Slug penetrates Wall. HV Slug penetrates Machine. Machine disabled. HV Slug penetrates Wall. Lgt. Assault Rifle destroyed. System corrupted by crushing effect (+2). Knocked back. HV Slug penetrates as-20246. as-20246 suffers critical hit (Destroy). HV Slug penetrates as-01859. as-01859 destroyed. Penetrated by HV Slug. Map ----- +----------------------------------------------------+ | ?????????????????????????????????????????????????? | | ?????????????????????????????????????????????????? | | ?????????????????????????????????????????????????? | | ?????????????????????????????????????????????????? | | ?????????????????????????????????????????????????? | | ?????????????????????????????????????????????????? | | ?????????????????????????????????????????????????? | | ?????????????????????????????????????????????????? | | ?????????????????????????????????????????????????? | | ?????????????????????????????????????????????????? | | ?????????????????????????????????????????????????? | | ?????????????????????????????????????????????????? | | ?????????????????????????????????????????????????? | | ?????????????????????????????????????????????????? | | ?????????" ??????????????????????????????????????? | | ????????" ?????????????????????????????????????## | | ??????? " ""?????????????????????????????????# | | ?????? " "????????????#####???????????????# | | ?????? " "#??????????##" #??????????????## | | ????? ""###???????#" #?????????????## | | ????? """#??????##" ##????????????# | | ????? "#????### ###????????### | | ???? ##???# ########## | | ???? ##?## #""""## | | ???" ### g | | ??? c a @ ## * | | ??? a a #### | | ??? a % ""#?#"""""#### | | ??? a #" "##?#######??#### * | | ???? ######??????????????##### | | ???? ##???????????????????????### | | ????? " ##??????????????????????????## | | ????? ? % ""#????????????????????????????? | | ???????" #" "##????????????????????????????? | | ?????????## """ ""##?????????????????????????????? | | ??????????########???????????????????????????????? | | ?????????????????????????????????????????????????? | | ?????????????????????????????????????????????????? | | ?????????????????????????????????????????????????? | | ?????????????????????????????????????????????????? | | ?????????????????????????????????????????????????? | | ?????????????????????????????????????????????????? | | ?????????????????????????????????????????????????? | | ?????????????????????????????????????????????????? | | ?????????????????????????????????????????????????? | | ?????????????????????????????????????????????????? | | ?????????????????????????????????????????????????? | | ?????????????????????????????????????????????????? | | ?????????????????????????????????????????????????? | | ?????????????????????????????????????????????????? | +----------------------------------------------------+ Best States ------------- Heat Dissipation 25 Energy Generation 14 Energy Capacity 250 Matter Stores 300 Matter Capacity 300 Sight Range 16 Terrain Scan Range 16 Terrain Scan Density 10 Evasion (%) 55 Targeting Accuracy 5 Item Schematics ----------------- None Robot Schematics ------------------ None Fabricated ------------ Nothing Alien Tech Used ----------------- None Achievements -------------- None Challenges ------------ None Game ------ Seed ReflectiveLargeRedistributor Manual? 0 Play Time 00:16:47 Cumulative 6.3 hours Start 2024.04.04 @ 02:49:48 End 2024.04.04 @ 03:06:19 Sessions 1 Manual Loads 0 Difficulty Rogue Special Mode None Game No. 14 Rogue 14 Adventurer 0 Explorer 0 Win Type - Total 0 Types 0/0/0/0/0/0/0/0/0 Lore% 16 Gallery% 14 Achievement% 14 Wizard Run 0 Options --------- Layout 2 ASCII 0 Keyboard 0 Movement Numpad Keybinds 0 Fullscreen 1 Font 24/Smallcaps Map View 50x44 Zoom Use 0% Tactical HUD 0 Map Filters NONE Filters NONE Steam 1 RUN: 7c35314f-be84-49ad-a465-a50dd102ad2a